[Event "Live Chess"]
[Site "Chess.com"]
[Date "2011.02.01"]
[Round "-"]
[White "harshal"]
[Black "hipposcottimus"]
[Result "0-1"]
[CurrentPosition "kr6/p1p1RR1p/3q4/8/8/1P1P2P1/PKPQ3P/8 w - -"]
[Timezone "UTC"]
[ECO "C20"]
[ECOUrl "https://www.chess.com/openings/Kings-Pawn-Opening-Leonardis-Variation"]
[UTCDate "2011.02.01"]
[UTCTime "02:00:58"]
[WhiteElo "1646"]
[BlackElo "1649"]
[TimeControl "60"]
[Termination "hipposcottimus won on time"]
[StartTime "02:00:58"]
[EndDate "2011.02.01"]
[EndTime "02:02:58"]
[Link "https://www.chess.com/game/live/93490842"]

1. e4 {[%clk 0:01:00]} 1... e5 {[%clk 0:01:00]} 2. d3 {[%clk 0:00:59.9]} 2... Nc6 {[%clk 0:00:59.7]} 3. f4 {[%clk 0:00:59.8]} 3... d5 {[%clk 0:00:57.4]} 4. exd5 {[%clk 0:00:57.9]} 4... Qxd5 {[%clk 0:00:57.1]} 5. Nc3 {[%clk 0:00:56.7]} 5... Bb4 {[%clk 0:00:55.1]} 6. Bd2 {[%clk 0:00:55.1]} 6... Bxc3 {[%clk 0:00:54.8]} 7. Bxc3 {[%clk 0:00:54.9]} 7... exf4 {[%clk 0:00:54.3]} 8. Qd2 {[%clk 0:00:53.9]} 8... Be6 {[%clk 0:00:52.1]} 9. Qxf4 {[%clk 0:00:51.4]} 9... O-O-O {[%clk 0:00:51.5]} 10. O-O-O {[%clk 0:00:50.4]} 10... Nf6 {[%clk 0:00:50.4]} 11. b3 {[%clk 0:00:49.1]} 11... Bg4 {[%clk 0:00:49.5]} 12. Be2 {[%clk 0:00:45]} 12... Be6 {[%clk 0:00:43.3]} 13. Bf3 {[%clk 0:00:37.8]} 13... Qb5 {[%clk 0:00:43]} 14. Re1 {[%clk 0:00:34.1]} 14... Bd5 {[%clk 0:00:40.7]} 15. Bxd5 {[%clk 0:00:31.3]} 15... Qc5 {[%clk 0:00:40.3]} 16. Bxc6 {[%clk 0:00:28.5]} 16... Qxc6 {[%clk 0:00:39.4]} 17. Qd2 {[%clk 0:00:26]} 17... Nd5 {[%clk 0:00:37.5]} 18. Kb2 {[%clk 0:00:23.8]} 18... b5 {[%clk 0:00:36.9]} 19. Bxg7 {[%clk 0:00:22.6]} 19... Rhg8 {[%clk 0:00:35]} 20. Bc3 {[%clk 0:00:19.4]} 20... Nb6 {[%clk 0:00:34.7]} 21. Nf3 {[%clk 0:00:17.5]} 21... Nd5 {[%clk 0:00:30]} 22. g3 {[%clk 0:00:14.2]} 22... b4 {[%clk 0:00:28]} 23. Bd4 {[%clk 0:00:10.3]} 23... Nc3 {[%clk 0:00:25.5]} 24. Bxc3 {[%clk 0:00:09.3]} 24... Qxf3 {[%clk 0:00:24.4]} 25. Bxb4 {[%clk 0:00:06.4]} 25... Qc6 {[%clk 0:00:22.4]} 26. Be7 {[%clk 0:00:04.9]} 26... Kb7 {[%clk 0:00:21.7]} 27. Bxd8 {[%clk 0:00:04.1]} 27... Rxd8 {[%clk 0:00:21.4]} 28. Re7 {[%clk 0:00:02.7]} 28... Ka8 {[%clk 0:00:20.5]} 29. Rhe1 {[%clk 0:00:02.3]} 29... Rb8 {[%clk 0:00:19.5]} 30. Rxf7 {[%clk 0:00:01.3]} 30... Qb6 {[%clk 0:00:18.5]} 31. Ree7 {[%clk 0:00:00.3]} 31... Qd6 {[%clk 0:00:15.5]} 0-1

[Event "Live Chess"]
[Site "Chess.com"]
[Date "2011.02.01"]
[Round "-"]
[White "hipposcottimus"]
[Black "harshal"]
[Result "0-1"]
[CurrentPosition "5r2/pp2k1pp/3p4/4b3/8/2N5/PPP2PPP/4R1K1 w - -"]
[Timezone "UTC"]
[ECO "C41"]
[ECOUrl "https://www.chess.com/openings/Philidor-Defense-Lopez-Countergambit-4.d4"]
[UTCDate "2011.02.01"]
[UTCTime "01:58:40"]
[WhiteElo "1641"]
[BlackElo "1654"]
[TimeControl "60"]
[Termination "harshal won on time"]
[StartTime "01:58:40"]
[EndDate "2011.02.01"]
[EndTime "02:00:41"]
[Link "https://www.chess.com/game/live/93490350"]

1. e4 {[%clk 0:01:00]} 1... e5 {[%clk 0:01:00]} 2. Nf3 {[%clk 0:00:59]} 2... d6 {[%clk 0:00:59.9]} 3. Bc4 {[%clk 0:00:58.7]} 3... f5 {[%clk 0:00:59.8]} 4. d4 {[%clk 0:00:58.1]} 4... Qe7 {[%clk 0:00:59.2]} 5. dxe5 {[%clk 0:00:54.8]} 5... fxe4 {[%clk 0:00:58.5]} 6. exd6 {[%clk 0:00:50.9]} 6... Qxd6 {[%clk 0:00:56.5]} 7. Qe2 {[%clk 0:00:49.7]} 7... Bf5 {[%clk 0:00:49.1]} 8. Nfd2 {[%clk 0:00:48.7]} 8... Kd8 {[%clk 0:00:44.1]} 9. Nxe4 {[%clk 0:00:44.2]} 9... Bxe4 {[%clk 0:00:42.3]} 10. Qxe4 {[%clk 0:00:43.9]} 10... Nf6 {[%clk 0:00:41.1]} 11. Bg5 {[%clk 0:00:40.4]} 11... Be7 {[%clk 0:00:38.4]} 12. Bxf6 {[%clk 0:00:38.7]} 12... Bxf6 {[%clk 0:00:37.5]} 13. O-O {[%clk 0:00:20.4]} 13... Nc6 {[%clk 0:00:31.7]} 14. Nc3 {[%clk 0:00:18.5]} 14... Re8 {[%clk 0:00:27.5]} 15. Qf3 {[%clk 0:00:08]} 15... Ne5 {[%clk 0:00:24.4]} 16. Qg3 {[%clk 0:00:06]} 16... Nxc4 {[%clk 0:00:21.3]} 17. Rad1 {[%clk 0:00:05.5]} 17... Be5 {[%clk 0:00:18.6]} 18. Rxd6+ {[%clk 0:00:04]} 18... cxd6 {[%clk 0:00:17]} 19. Qd3 {[%clk 0:00:03.2]} 19... Kd7 {[%clk 0:00:14.9]} 20. Qxc4 {[%clk 0:00:02.3]} 20... Rac8 {[%clk 0:00:14]} 21. Qf7+ {[%clk 0:00:01.9]} 21... Re7 {[%clk 0:00:13]} 22. Qxe7+ {[%clk 0:00:00.7]} 22... Kxe7 {[%clk 0:00:12.1]} 23. Re1 {[%clk 0:00:00.4]} 23... Rf8 {[%clk 0:00:11]} 0-1

[Event "Live Chess"]
[Site "Chess.com"]
[Date "2011.02.01"]
[Round "-"]
[White "Swannsman22"]
[Black "hipposcottimus"]
[Result "0-1"]
[CurrentPosition "2r2k1r/p4ppp/3b4/3P4/3p4/N2P1qPb/PP3P1P/R3R1K1 w - -"]
[Timezone "UTC"]
[ECO "C44"]
[ECOUrl "https://www.chess.com/openings/Kings-Pawn-Opening-Kings-Knight-Variation-2...Nc6-3.d3-Nf6"]
[UTCDate "2011.02.01"]
[UTCTime "01:16:15"]
[WhiteElo "1360"]
[BlackElo "1427"]
[TimeControl "600"]
[Termination "hipposcottimus won by resignation"]
[StartTime "01:16:15"]
[EndDate "2011.02.01"]
[EndTime "01:22:07"]
[Link "https://www.chess.com/game/live/93480287"]

1. e4 {[%clk 0:10:00]} 1... e5 {[%clk 0:10:00]} 2. Nf3 {[%clk 0:09:57.7]} 2... Nc6 {[%clk 0:09:59.3]} 3. d3 {[%clk 0:09:56.6]} 3... Nf6 {[%clk 0:09:57.6]} 4. Bg5 {[%clk 0:09:52]} 4... d5 {[%clk 0:09:51.2]} 5. Bxf6 {[%clk 0:09:48.8]} 5... Qxf6 {[%clk 0:09:49.2]} 6. exd5 {[%clk 0:09:45.5]} 6... Nd4 {[%clk 0:09:39.7]} 7. Be2 {[%clk 0:09:30.7]} 7... c6 {[%clk 0:09:13.3]} 8. c4 {[%clk 0:09:24.8]} 8... cxd5 {[%clk 0:09:09.5]} 9. cxd5 {[%clk 0:09:20.7]} 9... Bd6 {[%clk 0:09:06.5]} 10. Nxd4 {[%clk 0:09:09.8]} 10... exd4 {[%clk 0:09:04.5]} 11. Qa4+ {[%clk 0:09:07.5]} 11... Bd7 {[%clk 0:09:02.8]} 12. Qb3 {[%clk 0:08:57.7]} 12... Rc8 {[%clk 0:08:33.6]} 13. O-O {[%clk 0:08:47.8]} 13... Qe5 {[%clk 0:08:31.1]} 14. g3 {[%clk 0:08:17]} 14... Qxe2 {[%clk 0:08:23.3]} 15. Na3 {[%clk 0:08:10.4]} 15... Qf3 {[%clk 0:08:04.7]} 16. Qxb7 {[%clk 0:07:51.8]} 16... Bh3 {[%clk 0:07:57.4]} 17. Qb5+ {[%clk 0:07:29.5]} 17... Kf8 {[%clk 0:07:37.1]} 18. Qe8+ {[%clk 0:06:47.8]} 18... Kxe8 {[%clk 0:07:33.5]} 19. Rfe1+ {[%clk 0:06:46.4]} 19... Kf8 {[%clk 0:07:31.3]} 0-1

[Event "Live Chess"]
[Site "Chess.com"]
[Date "2011.02.01"]
[Round "-"]
[White "erfmavs"]
[Black "hipposcottimus"]
[Result "0-1"]
[CurrentPosition "r5k1/p2b1ppp/5n2/8/Kb6/1NqP4/P5PP/R2Q3R w - -"]
[Timezone "UTC"]
[ECO "C58"]
[ECOUrl "https://www.chess.com/openings/Italian-Game-Knight-Attack-Polerio-Bishop-Check-Line-6...c6-7.dxc6-bxc6-8.Be2"]
[UTCDate "2011.02.01"]
[UTCTime "00:40:28"]
[WhiteElo "1343"]
[BlackElo "1420"]
[TimeControl "600"]
[Termination "hipposcottimus won by checkmate"]
[StartTime "00:40:28"]
[EndDate "2011.02.01"]
[EndTime "00:51:46"]
[Link "https://www.chess.com/game/live/93471775"]

1. e4 {[%clk 0:10:00]} 1... e5 {[%clk 0:10:00]} 2. Nf3 {[%clk 0:09:57]} 2... Nc6 {[%clk 0:09:59.3]} 3. Bc4 {[%clk 0:09:53.9]} 3... Nf6 {[%clk 0:09:58.3]} 4. Ng5 {[%clk 0:09:51.7]} 4... d5 {[%clk 0:09:57.3]} 5. exd5 {[%clk 0:09:48.6]} 5... Na5 {[%clk 0:09:57]} 6. Bb5+ {[%clk 0:09:38.6]} 6... c6 {[%clk 0:09:56.4]} 7. dxc6 {[%clk 0:09:36.5]} 7... bxc6 {[%clk 0:09:56.1]} 8. Be2 {[%clk 0:09:09.1]} 8... Be7 {[%clk 0:09:16.7]} 9. Nf3 {[%clk 0:09:02.3]} 9... e4 {[%clk 0:09:09]} 10. Ne5 {[%clk 0:08:41.5]} 10... Bd6 {[%clk 0:09:02.7]} 11. d4 {[%clk 0:08:39.7]} 11... exd3 {[%clk 0:09:01]} 12. Nxd3 {[%clk 0:08:35.4]} 12... O-O {[%clk 0:09:00.5]} 13. Bf3 {[%clk 0:08:21.9]} 13... Re8+ {[%clk 0:08:42.8]} 14. Be3 {[%clk 0:08:17.7]} 14... Nc4 {[%clk 0:08:39]} 15. Bxc6 {[%clk 0:07:36.6]} 15... Nxe3 {[%clk 0:08:34.5]} 16. fxe3 {[%clk 0:07:33.5]} 16... Rxe3+ {[%clk 0:08:31.9]} 17. Kd2 {[%clk 0:07:22.4]} 17... Bf4 {[%clk 0:08:18.9]} 18. Kc3 {[%clk 0:06:29]} 18... Qc7 {[%clk 0:07:33.7]} 19. Nd2 {[%clk 0:05:37.2]} 19... Qxc6+ {[%clk 0:07:19.2]} 20. Kb3 {[%clk 0:05:15.9]} 20... Be6+ {[%clk 0:07:06]} 21. Ka3 {[%clk 0:04:59.4]} 21... Bd6+ {[%clk 0:06:34.7]} 22. b4 {[%clk 0:04:55.6]} 22... Qc3+ {[%clk 0:05:25.5]} 23. Nb3 {[%clk 0:04:31.8]} 23... Rxd3 {[%clk 0:05:02.3]} 24. cxd3 {[%clk 0:04:11.9]} 24... Bxb4+ {[%clk 0:04:56.1]} 25. Ka4 {[%clk 0:04:02.1]} 25... Bd7# {[%clk 0:04:52.5]} 0-1

[Event "Live Chess"]
[Site "Chess.com"]
[Date "2011.02.01"]
[Round "-"]
[White "MadSnowman"]
[Black "hipposcottimus"]
[Result "0-1"]
[CurrentPosition "2kr1bnr/ppp3pp/8/4P3/5Qbq/2PP2N1/PPn3PP/R3KBNR w KQ -"]
[Timezone "UTC"]
[ECO "C31"]
[ECOUrl "https://www.chess.com/openings/Kings-Gambit-Declined-Falkbeer-Milner-Barry-Variation"]
[UTCDate "2011.02.01"]
[UTCTime "00:32:38"]
[WhiteElo "1499"]
[BlackElo "1413"]
[TimeControl "120+12"]
[Termination "hipposcottimus won by resignation"]
[StartTime "00:32:38"]
[EndDate "2011.02.01"]
[EndTime "00:38:47"]
[Link "https://www.chess.com/game/live/93469920"]

1. e4 {[%clk 0:02:00]} 1... e5 {[%clk 0:02:00]} 2. f4 {[%clk 0:02:10.4]} 2... d5 {[%clk 0:02:10.3]} 3. Nc3 {[%clk 0:02:17.3]} 3... d4 {[%clk 0:02:09.1]} 4. Nce2 {[%clk 0:01:43.3]} 4... f5 {[%clk 0:01:57]} 5. fxe5 {[%clk 0:01:43.6]} 5... fxe4 {[%clk 0:02:07.6]} 6. Ng3 {[%clk 0:01:51.7]} 6... Qh4 {[%clk 0:01:55.1]} 7. d3 {[%clk 0:01:59.1]} 7... e3 {[%clk 0:02:02.3]} 8. Qf3 {[%clk 0:01:52.5]} 8... Nc6 {[%clk 0:01:46.2]} 9. Bxe3 {[%clk 0:00:12.3]} 9... Bg4 {[%clk 0:01:54.2]} 10. Qf4 {[%clk 0:00:17.6]} 10... O-O-O {[%clk 0:01:53.5]} 11. Bxd4 {[%clk 0:00:27.7]} 11... Nxd4 {[%clk 0:02:00.8]} 12. c3 {[%clk 0:00:34.3]} 12... Nc2+ {[%clk 0:02:11.1]} 0-1

[Event "Live Chess"]
[Site "Chess.com"]
[Date "2011.01.31"]
[Round "-"]
[White "hipposcottimus"]
[Black "Crossland"]
[Result "0-1"]
[CurrentPosition "5k1r/4b1pp/QpB5/8/8/4p3/PPPq2PP/R2K3R w - -"]
[Timezone "UTC"]
[ECO "C57"]
[ECOUrl "https://www.chess.com/openings/Italian-Game-Fried-Liver-Attack-6...Kxf7-7.Qf3"]
[UTCDate "2011.01.31"]
[UTCTime "23:09:17"]
[WhiteElo "1402"]
[BlackElo "1152"]
[TimeControl "600"]
[Termination "Crossland won by checkmate"]
[StartTime "23:09:17"]
[EndDate "2011.01.31"]
[EndTime "23:17:43"]
[Link "https://www.chess.com/game/live/93448880"]

1. e4 {[%clk 0:10:00]} 1... e5 {[%clk 0:10:00]} 2. Nf3 {[%clk 0:09:56.1]} 2... Nc6 {[%clk 0:09:56]} 3. Bc4 {[%clk 0:09:55.6]} 3... Nf6 {[%clk 0:09:48.3]} 4. Ng5 {[%clk 0:09:52.2]} 4... d5 {[%clk 0:09:18.3]} 5. exd5 {[%clk 0:09:43.7]} 5... Nxd5 {[%clk 0:09:14.2]} 6. Nxf7 {[%clk 0:09:42.6]} 6... Kxf7 {[%clk 0:09:08.7]} 7. Qf3+ {[%clk 0:09:42]} 7... Ke8 {[%clk 0:09:03.3]} 8. Bxd5 {[%clk 0:09:39.1]} 8... Ne7 {[%clk 0:08:54.7]} 9. Qf7+ {[%clk 0:09:35.3]} 9... Kd7 {[%clk 0:08:47.6]} 10. Be6+ {[%clk 0:09:34.8]} 10... Kc6 {[%clk 0:08:40.7]} 11. Bb3 {[%clk 0:09:14.8]} 11... b6 {[%clk 0:08:32.6]} 12. Nc3 {[%clk 0:09:04.8]} 12... Rb8 {[%clk 0:08:11.5]} 13. Nd5 {[%clk 0:08:50.3]} 13... Ba6 {[%clk 0:07:42.5]} 14. Nxe7+ {[%clk 0:08:43.8]} 14... Bxe7 {[%clk 0:07:37.3]} 15. Bd5+ {[%clk 0:08:42.5]} 15... Kd7 {[%clk 0:07:20.5]} 16. Qe6+ {[%clk 0:08:37.2]} 16... Ke8 {[%clk 0:07:00.8]} 17. Bc6+ {[%clk 0:08:29.9]} 17... Kf8 {[%clk 0:06:58.8]} 18. Bd5 {[%clk 0:08:11.1]} 18... Qe8 {[%clk 0:06:24.6]} 19. Bc6 {[%clk 0:08:07.1]} 19... Qf7 {[%clk 0:06:14.4]} 20. Qd7 {[%clk 0:07:46.7]} 20... Rd8 {[%clk 0:05:59.2]} 21. Qxc7 {[%clk 0:07:44.5]} 21... e4 {[%clk 0:05:42.3]} 22. Qxa7 {[%clk 0:07:36.4]} 22... e3 {[%clk 0:05:37.3]} 23. Qxa6 {[%clk 0:07:06.2]} 23... Qxf2+ {[%clk 0:05:24.2]} 24. Kd1 {[%clk 0:07:00.7]} 24... Rxd2+ {[%clk 0:04:59.5]} 25. Bxd2 {[%clk 0:06:49.4]} 25... Qxd2# {[%clk 0:04:58]} 0-1

[Event "Live Chess"]
[Site "Chess.com"]
[Date "2011.01.31"]
[Round "-"]
[White "Crossland"]
[Black "hipposcottimus"]
[Result "0-1"]
[CurrentPosition "r2q1rk1/p1p4p/3b2p1/2pp4/5N2/2Pp3P/PP3P2/RNB2K2 b - -"]
[Timezone "UTC"]
[ECO "C23"]
[ECOUrl "https://www.chess.com/openings/Bishops-Opening-2...Nc6"]
[UTCDate "2011.01.31"]
[UTCTime "23:04:09"]
[WhiteElo "1152"]
[BlackElo "1402"]
[TimeControl "600"]
[Termination "hipposcottimus won by resignation"]
[StartTime "23:04:09"]
[EndDate "2011.01.31"]
[EndTime "23:08:39"]
[Link "https://www.chess.com/game/live/93447502"]

1. e4 {[%clk 0:10:00]} 1... e5 {[%clk 0:10:00]} 2. Bc4 {[%clk 0:09:57.7]} 2... Nc6 {[%clk 0:09:53.7]} 3. c3 {[%clk 0:09:54]} 3... f5 {[%clk 0:09:46.7]} 4. Qh5+ {[%clk 0:09:41.9]} 4... g6 {[%clk 0:09:44.1]} 5. Qf3 {[%clk 0:09:28.6]} 5... Nf6 {[%clk 0:09:28.2]} 6. exf5 {[%clk 0:09:23.1]} 6... e4 {[%clk 0:09:21.4]} 7. Qf4 {[%clk 0:09:16.8]} 7... d5 {[%clk 0:09:16.7]} 8. Bb5 {[%clk 0:09:10.4]} 8... Bxf5 {[%clk 0:09:05.7]} 9. Bxc6+ {[%clk 0:08:59.7]} 9... bxc6 {[%clk 0:09:04.9]} 10. Qe5+ {[%clk 0:08:57]} 10... Be7 {[%clk 0:09:01.2]} 11. Ne2 {[%clk 0:08:37.1]} 11... O-O {[%clk 0:08:56]} 12. O-O {[%clk 0:08:34.7]} 12... Bd6 {[%clk 0:08:52]} 13. Qd4 {[%clk 0:08:20.7]} 13... c5 {[%clk 0:08:51.6]} 14. Qe3 {[%clk 0:08:07.1]} 14... Ng4 {[%clk 0:08:51.3]} 15. Qh3 {[%clk 0:07:29.2]} 15... Nxh2 {[%clk 0:08:49.2]} 16. d3 {[%clk 0:07:08.7]} 16... Bxh3 {[%clk 0:08:45.1]} 17. gxh3 {[%clk 0:07:03.2]} 17... Nxf1 {[%clk 0:08:41.6]} 18. Kxf1 {[%clk 0:07:01.7]} 18... exd3 {[%clk 0:08:39.4]} 19. Nf4 {[%clk 0:06:59.9]} 0-1

[Event "Live Chess"]
[Site "Chess.com"]
[Date "2011.01.31"]
[Round "-"]
[White "asv2000"]
[Black "hipposcottimus"]
[Result "1/2-1/2"]
[CurrentPosition "5R2/k7/P6K/1PP5/8/8/8/8 b - -"]
[Timezone "UTC"]
[ECO "C48"]
[ECOUrl "https://www.chess.com/openings/Four-Knights-Game-Spanish-Variation"]
[UTCDate "2011.01.31"]
[UTCTime "22:48:45"]
[WhiteElo "1300"]
[BlackElo "1402"]
[TimeControl "300+5"]
[Termination "Game drawn by stalemate"]
[StartTime "22:48:45"]
[EndDate "2011.01.31"]
[EndTime "23:03:12"]
[Link "https://www.chess.com/game/live/93443359"]

1. e4 {[%clk 0:05:00]} 1... e5 {[%clk 0:05:00]} 2. Nf3 {[%clk 0:05:03.1]} 2... Nc6 {[%clk 0:05:03.2]} 3. Bb5 {[%clk 0:05:06.1]} 3... Nf6 {[%clk 0:05:07.7]} 4. Nc3 {[%clk 0:05:07.1]} 4... d6 {[%clk 0:05:05.3]} 5. Bxc6+ {[%clk 0:05:09.5]} 5... bxc6 {[%clk 0:05:10]} 6. d4 {[%clk 0:05:09.8]} 6... Bg4 {[%clk 0:05:14.5]} 7. dxe5 {[%clk 0:05:05.5]} 7... Bxf3 {[%clk 0:05:11.4]} 8. Qxf3 {[%clk 0:05:01.6]} 8... dxe5 {[%clk 0:05:14.6]} 9. Bg5 {[%clk 0:05:00.4]} 9... Be7 {[%clk 0:05:17.4]} 10. Rd1 {[%clk 0:04:50.4]} 10... Nd7 {[%clk 0:05:19.1]} 11. Be3 {[%clk 0:04:32]} 11... O-O {[%clk 0:05:19.2]} 12. Kf1 {[%clk 0:04:35.3]} 12... Qc8 {[%clk 0:04:50.7]} 13. g3 {[%clk 0:04:30.7]} 13... Nb6 {[%clk 0:04:50.9]} 14. Kg2 {[%clk 0:04:33.7]} 14... Nc4 {[%clk 0:04:43.4]} 15. Bc1 {[%clk 0:04:19.5]} 15... Nd6 {[%clk 0:04:47.1]} 16. b3 {[%clk 0:04:17.7]} 16... f5 {[%clk 0:04:48.6]} 17. exf5 {[%clk 0:04:10.3]} 17... Rxf5 {[%clk 0:04:39.7]} 18. Qxc6 {[%clk 0:04:12.4]} 18... Bg5 {[%clk 0:03:37.3]} 19. Bxg5 {[%clk 0:04:09.2]} 19... Rxg5 {[%clk 0:03:41.3]} 20. Nd5 {[%clk 0:04:10.8]} 20... Qd8 {[%clk 0:03:00.5]} 21. Nxc7 {[%clk 0:04:05.5]} 21... Rc8 {[%clk 0:02:48.8]} 22. Rxd6 {[%clk 0:03:55.3]} 22... Qxc7 {[%clk 0:02:49]} 23. Qxc7 {[%clk 0:03:38.4]} 23... Rxc7 {[%clk 0:02:51.4]} 24. c4 {[%clk 0:03:30]} 24... Kf7 {[%clk 0:02:55.4]} 25. Rhd1 {[%clk 0:03:32.6]} 25... Ke7 {[%clk 0:02:57.6]} 26. h4 {[%clk 0:03:31]} 26... Rf5 {[%clk 0:02:57.5]} 27. R1d5 {[%clk 0:03:29.4]} 27... h5 {[%clk 0:02:47.4]} 28. f3 {[%clk 0:03:07.5]} 28... g5 {[%clk 0:02:46]} 29. hxg5 {[%clk 0:02:55.5]} 29... Rxg5 {[%clk 0:02:48.7]} 30. Rh6 {[%clk 0:02:39.3]} 30... Kf7 {[%clk 0:02:38.8]} 31. Rh7+ {[%clk 0:02:41.1]} 31... Rg7 {[%clk 0:02:34.8]} 32. Rxg7+ {[%clk 0:02:42.2]} 32... Kxg7 {[%clk 0:02:37.1]} 33. Rxe5 {[%clk 0:02:45.1]} 33... Kg6 {[%clk 0:02:41.3]} 34. Kh3 {[%clk 0:02:46.1]} 34... Rc6 {[%clk 0:02:42.2]} 35. Kh4 {[%clk 0:02:46.5]} 35... Ra6 {[%clk 0:02:46.8]} 36. a4 {[%clk 0:02:45.7]} 36... Rb6 {[%clk 0:02:49.7]} 37. Rb5 {[%clk 0:02:49]} 37... Rf6 {[%clk 0:02:52.1]} 38. f4 {[%clk 0:02:49.9]} 38... Re6 {[%clk 0:02:55.4]} 39. Rg5+ {[%clk 0:02:45]} 39... Kf6 {[%clk 0:02:56]} 40. Rxh5 {[%clk 0:02:44.9]} 40... Re3 {[%clk 0:03:00.7]} 41. Rb5 {[%clk 0:02:41.8]} 41... Re2 {[%clk 0:02:55.6]} 42. Kg4 {[%clk 0:02:42.6]} 42... Re3 {[%clk 0:02:57.4]} 43. Ra5 {[%clk 0:02:40.2]} 43... Ke7 {[%clk 0:02:56]} 44. Rxa7+ {[%clk 0:02:35.2]} 44... Kd6 {[%clk 0:03:00.7]} 45. Ra5 {[%clk 0:02:36.4]} 45... Kc6 {[%clk 0:03:03.2]} 46. Rb5 {[%clk 0:02:37.2]} 46... Kd6 {[%clk 0:03:07.9]} 47. a5 {[%clk 0:02:40.2]} 47... Kc6 {[%clk 0:03:11.8]} 48. Kh4 {[%clk 0:02:35.8]} 48... Kd7 {[%clk 0:03:15.9]} 49. g4 {[%clk 0:02:38.8]} 49... Re4 {[%clk 0:03:17.8]} 50. f5 {[%clk 0:02:41.2]} 50... Re7 {[%clk 0:03:19]} 51. Kg5 {[%clk 0:02:42.3]} 51... Re6 {[%clk 0:03:23]} 52. f6 {[%clk 0:02:43.1]} 52... Kd6 {[%clk 0:03:22.2]} 53. Kg6 {[%clk 0:02:44.5]} 53... Kd7 {[%clk 0:03:23.5]} 54. g5 {[%clk 0:02:47.6]} 54... Ke8 {[%clk 0:03:25.8]} 55. Rb8+ {[%clk 0:02:48.2]} 55... Kd7 {[%clk 0:03:28.7]} 56. Kg7 {[%clk 0:02:48.6]} 56... Re5 {[%clk 0:03:30.6]} 57. f7 {[%clk 0:02:51.3]} 57... Rxg5+ {[%clk 0:03:28.7]} 58. Kh6 {[%clk 0:02:49.1]} 58... Rf5 {[%clk 0:03:29.7]} 59. f8=Q {[%clk 0:02:50.5]} 59... Rxf8 {[%clk 0:03:33.8]} 60. Rxf8 {[%clk 0:02:53]} 60... Kc6 {[%clk 0:03:37.9]} 61. b4 {[%clk 0:02:48.6]} 61... Kc7 {[%clk 0:03:39.9]} 62. a6 {[%clk 0:02:51.4]} 62... Kb6 {[%clk 0:03:42.6]} 63. b5 {[%clk 0:02:54.4]} 63... Ka7 {[%clk 0:03:45.1]} 64. c5 {[%clk 0:02:55.2]} 1/2-1/2

[Event "Live Chess"]
[Site "Chess.com"]
[Date "2011.01.31"]
[Round "-"]
[White "hipposcottimus"]
[Black "desalniettemin"]
[Result "0-1"]
[CurrentPosition "r4r2/p7/b3k2p/5np1/8/3R4/PP3PPP/5K2 w - -"]
[Timezone "UTC"]
[ECO "B00"]
[ECOUrl "https://www.chess.com/openings/Owens-Defense-2.d4-Bb7"]
[UTCDate "2011.01.31"]
[UTCTime "22:32:39"]
[WhiteElo "1649"]
[BlackElo "1434"]
[TimeControl "60"]
[Termination "desalniettemin won on time"]
[StartTime "22:32:39"]
[EndDate "2011.01.31"]
[EndTime "22:34:53"]
[Link "https://www.chess.com/game/live/93439055"]

1. e4 {[%clk 0:01:00]} 1... b6 {[%clk 0:01:00]} 2. d4 {[%clk 0:00:58]} 2... Bb7 {[%clk 0:00:57.9]} 3. d5 {[%clk 0:00:57.7]} 3... e6 {[%clk 0:00:57.2]} 4. c4 {[%clk 0:00:55.3]} 4... Bc5 {[%clk 0:00:56.5]} 5. Nf3 {[%clk 0:00:52.4]} 5... g5 {[%clk 0:00:52.8]} 6. Nc3 {[%clk 0:00:51.8]} 6... g4 {[%clk 0:00:51.4]} 7. Bg5 {[%clk 0:00:49.7]} 7... f6 {[%clk 0:00:49]} 8. Na4 {[%clk 0:00:48.8]} 8... fxg5 {[%clk 0:00:47.9]} 9. Nxc5 {[%clk 0:00:48.5]} 9... bxc5 {[%clk 0:00:46.7]} 10. Nd2 {[%clk 0:00:45.7]} 10... exd5 {[%clk 0:00:45.5]} 11. cxd5 {[%clk 0:00:44.4]} 11... d6 {[%clk 0:00:45.3]} 12. Qxg4 {[%clk 0:00:42.1]} 12... Bc8 {[%clk 0:00:44.3]} 13. Qh5+ {[%clk 0:00:41.7]} 13... Kd7 {[%clk 0:00:40]} 14. Bb5+ {[%clk 0:00:41.1]} 14... c6 {[%clk 0:00:38]} 15. dxc6+ {[%clk 0:00:40.7]} 15... Nxc6 {[%clk 0:00:37.4]} 16. Nc4 {[%clk 0:00:38.3]} 16... Ne7 {[%clk 0:00:32.3]} 17. Rd1 {[%clk 0:00:30.9]} 17... Qa5+ {[%clk 0:00:31.3]} 18. Rd2 {[%clk 0:00:22]} 18... Qxb5 {[%clk 0:00:30.3]} 19. Rxd6+ {[%clk 0:00:20.6]} 19... Kc7 {[%clk 0:00:28]} 20. Rxc6+ {[%clk 0:00:14]} 20... Kxc6 {[%clk 0:00:27]} 21. Qh6+ {[%clk 0:00:12.6]} 21... Kb7 {[%clk 0:00:23.8]} 22. Qd6 {[%clk 0:00:11]} 22... Qxc4 {[%clk 0:00:22.6]} 23. Qd5+ {[%clk 0:00:10.1]} 23... Qxd5 {[%clk 0:00:21.1]} 24. exd5 {[%clk 0:00:09.9]} 24... Nxd5 {[%clk 0:00:20.6]} 25. O-O {[%clk 0:00:09.3]} 25... Rf8 {[%clk 0:00:19.6]} 26. Rc1 {[%clk 0:00:09]} 26... Nf4 {[%clk 0:00:18.3]} 27. Rxc5 {[%clk 0:00:07.9]} 27... Ne2+ {[%clk 0:00:17.6]} 28. Kf1 {[%clk 0:00:06.2]} 28... Nd4 {[%clk 0:00:15.7]} 29. Rc4 {[%clk 0:00:04.8]} 29... Nf5 {[%clk 0:00:10]} 30. Rb4+ {[%clk 0:00:04.4]} 30... Kc7 {[%clk 0:00:08.5]} 31. Rg4 {[%clk 0:00:04.1]} 31... h6 {[%clk 0:00:06.3]} 32. Rc4+ {[%clk 0:00:03.5]} 32... Kd7 {[%clk 0:00:04.6]} 33. Rd4+ {[%clk 0:00:02.9]} 33... Ke6 {[%clk 0:00:03.5]} 34. Rd3 {[%clk 0:00:01.6]} 34... Ba6 {[%clk 0:00:02.3]} 0-1